Cogmind - Beta 15 @@@ ROGUE MODE // 2025.07.14 @ 08:47:57 Player: Rockstar Result: Destroyed by D0-HF7(h) with Bolt Gun Performance ------------- Evolutions (0) 0 Regions Visited (3) 600 Robots Destroyed (7) 35 Value Destroyed (263) 263 Prototype IDs (3) 60 Alien Tech Used (0) 0 Bonus (289) 289 TOTAL SCORE: 1247 Bonus ------- Registered with UFD 300 Friendly Fire -11 Cogmind --------- Core Integrity 0/250 Matter 252/300 Energy 86/100 System Corruption 0% Temperature Cool (0) Movement Rolling (80) Location -8/Scraptown Parts ------- > --- POWER (1) -------- (None) > --- PROPULSION (2) --- Wheel Wheel > --- UTILITY (2) ------ Small Storage Unit Subdweller Optics > --- WEAPON (2) ------- (None) > --- INVENTORY (8) ---- Heavy Ion Engine Heavy Ion Engine Aluminum Leg Aluminum Leg Wheel Assault Rifle Shotgun Grenade Launcher Peak State ------------ > --- POWER ------------ Heavy Ion Engine > --- PROPULSION ------- Wheel Wheel > --- UTILITY ---------- Small Storage Unit Subdweller Optics > --- WEAPON ----------- Assault Rifle CPS Tube > --- INVENTORY -------- Heavy Ion Engine Heavy Ion Engine Aluminum Leg Aluminum Leg Wheel Assault Rifle Shotgun Grenade Launcher [Rating: 13] Favorites ----------- Power Heavy Ion Engine Engine Heavy Ion Engine Propulsion Wheel Wheel Wheel Utility Small Storage Unit Device Subdweller Optics Storage Small Storage Unit Weapon Assault Rifle Ballistic Gun Assault Rifle Special Weapon CPS Tube Build | -11 -10 -10 -8 ------- Run | Yrd Mat Sub Scr Slots Evolved . | . . . . Power . | . . . . Propulsion . | . . . . Utility . | . . . . Weapon . | . . . . Parts Attached 15 | 6 4 3 2 Power 3 | 1 1 1 . Engine 3 | 1 1 1 . Core . | . . . . Reactor . | . . . . Propulsion 5 | 2 1 1 1 Treads . | . . . . Leg . | . . . . Wheel 5 | 2 1 1 1 Hover . | . . . . Flight . | . . . . Utility 2 | 1 . 1 . Device 1 | . . 1 . Storage 1 | 1 . . . Processor . | . . . . Hackware . | . . . . Protection . | . . . . Artifact . | . . . . Weapon 5 | 2 2 . 1 Energy Gun . | . . . . Energy Cannon . | . . . . Ballistic Gun 4 | 2 2 . . Ballistic Cannon . | . . . . Launcher . | . . . . Special Weapon 1 | . . . 1 Impact Weapon . | . . . . Slashing Weapon . | . . . . Piercing Weapon . | . . . . Special Melee Weapon . | . . . . Unidentified Prototypes 1 | . 1 . . Parts Lost 5 | . . 1 4 Power 1 | . . . 1 Propulsion 1 | . . . 1 Utility . | . . . . Weapon 3 | . . 1 2 Highest Loss Streak 4 | . . 1 4 To Critical Strikes . | . . . . Average Backups 6 | 1 7 7 7 Power 2 | . 2 2 2 Propulsion 2 | . 2 2 3 Utility . | . . . . Weapon 2 | . 2 2 2 Tool/Special . | . . . . Unused Backups 7 | . 2 . 5 Power 3 | . 1 . 2 Propulsion 2 | . . . 2 Utility . | . . . . Weapon 2 | . 1 . 1 Tool/Special . | . . . . Average Slot Usage (%) 92 | . 85 90 98 Engine 13 | . 14 14 13 Wheel 27 | . 28 28 27 Device 7 | . . 4 14 Storage 14 | . 14 14 14 Ballistic Gun 27 | . 28 28 26 Peak Build Rating 13 | 6 11 12 13 Average Rating 10 | 4 9 11 11 On Entrance 7 | . 6 11 11 Naked Turns . | . . . . Heaviest Build 20 | 14 19 20 19 Greatest Support 20 | 20 20 20 20 Greatest Overweight (x) 1 | . . . 1 Average Overweight (x) . | . . . . Largest Inventory Capacity 8 | 8 8 8 8 Average Capacity 7 | 7 8 8 8 Most Carried 8 | 4 8 8 8 Average Carried 7 | 1 7 7 7 Final Capacity 8 | 8 8 8 8 Final Carried 8 | 4 8 7 8 Class Distribution -------------------- 100% | Mutant Dominant Class ---------------- Mutant | -10/Materials Mutant | -10/Subcaves Mutant | -8/Scraptown Resources | -11 -10 -10 -8 ----------- Run | Yrd Mat Sub Scr Matter Collected 453 | 182 138 133 . Remotely . | . . . . Salvage Created 290 | . 217 73 . Parts 12 | . 10 2 . Haulers Intercepted . | . . . . Recyclers Shooed . | . . . . Parts Field Recycled . | . . . . Retrieved Matter . | . . . . Parts Self-Destructed . | . . . . Prevented . | . . . . Kills | -11 -10 -10 -8 ------- Run | Yrd Mat Sub Scr Combat Hostiles Destroyed 7 | . 5 2 . Guns 7 | . 5 2 . Classes Destroyed 2 | . 1 1 . Grunt 5 | . 5 . . Subdweller 2 | . . 2 . Best Kill Streak 3 | . 3 2 . Combat Bots Only 3 | . 3 2 . Max Kills in Single Turn 1 | . 1 1 . Gunslinging . | . . . . Exploded . | . . . . Melee . | . . . . Uniques/NPCs Destroyed . | . . . . Combat | -11 -10 -10 -8 -------- Run | Yrd Mat Sub Scr Hostile Shots Fired 89 | . 14 19 56 Missed 21 | . 3 3 15 Hits 68 | . 11 16 41 Melee 4 | . . . 4 Projectile 64 | . 11 16 37 Critical Strikes 7 | . 1 1 5 Damage Taken 957 | . 131 335 491 Core 253 | . 71 45 137 Absorbed by Shields . | . . . . Core Remaining (%) 100 | 100 . . . Volleys Fired 20 | . 11 8 1 Largest 2 | . 2 2 1 Hottest 46 | . 46 46 . Shots Fired 39 | . 22 16 1 Gun 38 | . 22 16 . Cannon . | . . . . Launcher . | . . . . Special 1 | . . . 1 Kinetic 38 | . 22 16 . Thermal . | . . . . Explosive . | . . . . Electromagnetic . | . . . . Robot Hit Streak 11 | . 7 11 3 Robot Miss Streak 3 | . 3 2 . Penetration Max . | . . . . Secondary Targets 1 | . 1 . . Max Gunslinging Chain 1 | . 1 . . Shots Hit Robots 35 | . 18 16 1 Core Hits 17 | . 11 6 . Critical Kills . | . . . . Critical Parts Destroyed . | . . . . Critical Strikes . | . . . . Melee Attacks . | . . . . Impact . | . . . . Slashing . | . . . . Piercing . | . . . . Sneak Attacks . | . . . . Combat Hostiles . | . . . . Follow-up Attacks . | . . . . Damage Inflicted 567 | . 276 291 . Guns 567 | . 276 291 . Cannons . | . . . . Explosions . | . . . . Melee . | . . . . Ramming . | . . . . Kinetic 567 | . 276 291 . Thermal . | . . . . Explosive . | . . . . Electromagnetic . | . . . . Impact . | . . . . Slashing . | . . . . Piercing . | . . . . Highest Corruption 1 | . 1 1 . Average Corruption 1 | . 1 1 . Corruption Purged . | . . . . Corruption Blocked . | . . . . Effects 2 | . . 2 . Matter Fused 1 | . . 1 . Heat Flow Errors 1 | . . 1 . Overload Shots . | . . . . Overflow Damage . | . . . . Projectiles . | . . . . Explosions . | . . . . Melee . | . . . . Knockbacks . | . . . . Impact . | . . . . Kinetic . | . . . . Secondary . | . . . . Self-Inflicted Damage . | . . . . Shots . | . . . . Rammed . | . . . . Targets Rammed . | . . . . Kicked . | . . . . Crushed . | . . . . Highest Temperature 170 | . 24 170 . Average Temperature 29 | . 7 93 . Received Heat Transfer 138 | . 90 36 12 Siege Activations . | . . . . Martial Activations . | . . . . Shielding Activations . | . . . . Robots Disrupted . | . . . . Combat Hostiles . | . . . . Robots Corrupted . | . . . . Combat Hostiles . | . . . . Parts Fried . | . . . . Impact Corruptions . | . . . . Robots Melted . | . . . . Combat Hostiles . | . . . . Parts Melted 1 | . . 1 . Heat Transferred . | . . . . Parts Sabotaged . | . . . . Parts Stolen . | . . . . Parts Stripped . | . . . . Power Chain Reactions . | . . . . Alert | -11 -10 -10 -8 ------- Run | Yrd Mat Sub Scr Maximum Alert Level . | . . . . Low Security (%) 100 | 100 100 . . Level 1 . | . . . . Level 2 . | . . . . Level 3 . | . . . . Level 4 . | . . . . Level 5 . | . . . . High Security . | . . . . Max Security . | . . . . Peak Influence 125 | . 125 . . Initial . | . . . . Average 36 | . 48 . . Influence Increases 181 | . 181 . . Destroy 0b10 Robot/C 100 | . 100 . . Destroy Leader 20 | . 20 . . Successful Hack 16 | . 16 . . Partial Spotted 15 | . 15 . . Lose Combat Pursuer 30 | . 30 . . Influence Decreases 181 | . 56 125 . Entered New Map 61 | . . 61 . Time Decay 120 | . 56 64 . Squads Dispatched 1 | . 1 . . Investigation 1 | . 1 . . Extermination . | . . . . Reinforcement . | . . . . Assault . | . . . . Garrison . | . . . . Intercept . | . . . . Searches Triggered . | . . . . Construction Impeded . | . . . . Haulers Reinforced . | . . . . Active Scanning Responses . | . . . . Cargo Convoy Interrupts . | . . . . Stealth | -11 -10 -10 -8 --------- Run | Yrd Mat Sub Scr Distress Signals 1 | . 1 . . Communications Jammed . | . . . . Distress Signals . | . . . . Times Spotted 26 | . 10 2 14 Peak Tracking Total 17 | . 6 2 17 Tactical Retreats 2 | . 1 . 1 Traps | -11 -10 -10 -8 ------- Run | Yrd Mat Sub Scr Traps Triggered . | . . . . Indirectly . | . . . . Trap Hack Attempts . | . . . . Triggered . | . . . . Disarmed . | . . . . Reprogrammed . | . . . . Reused . | . . . . Traps Extracted . | . . . . Installed . | . . . . Triggered . | . . . . Machines | -11 -10 -10 -8 ---------- Run | Yrd Mat Sub Scr Machines Disabled . | . . . . Max in Single Turn . | . . . . Machines Repaired . | . . . . Machines Dismantled . | . . . . Machines Sabotaged . | . . . . Overloaded Fab Kills . | . . . . Hacking | -11 -10 -10 -8 --------- Run | Yrd Mat Sub Scr Machines Accessed 1 | . 1 . . Terminals 1 | . 1 . . Fabricators . | . . . . Repair Stations . | . . . . Recycling Units . | . . . . Scanalyzers . | . . . . Garrison Access . | . . . . Total Hacks 9 | . 9 . . Successful 6 | . 6 . . Failed 3 | . 3 . . Catastrophic 1 | . 1 . . Database Lockouts . | . . . . Manual 4 | . 4 . . Terminals 9 | . 9 . . Fabricators . | . . . . Repair Stations . | . . . . Recycling Units . | . . . . Scanalyzers . | . . . . Garrison Access . | . . . . Terminal Hacks 4 | . 4 . . Prototype ID Bank 1 | . 1 . . Branch Access Points 1 | . 1 . . Emergency Access Points 1 | . 1 . . Maintenance Status 1 | . 1 . . Fabricator Hacks . | . . . . Repair Station Hacks . | . . . . Recycling Unit Hacks . | . . . . Scanalyzer . | . . . . Garrison Access Hacks . | . . . . Unauthorized Hacks 2 | . 2 . . Terminals 2 | . 2 . . Track 1 | . 1 . . Assimilate 1 | . 1 . . Fabricators . | . . . . Repair Stations . | . . . . Recycling Units . | . . . . Scanalyzers . | . . . . Garrison Access . | . . . . Data Cores Recovered . | . . . . Used . | . . . . Hacking Detections 1 | . 1 . . Full Trace Events 1 | . 1 . . Feedback Events 1 | . 1 . . Corruption 1 | . 1 . . Feedback Blocked . | . . . . Robot Schematics Acquired . | . . . . Robots Built . | . . . . Authchips . | . . . . Time . | . . . . Total Robot Build Rating . | . . . . Part Schematics Acquired . | . . . . Parts Built . | . . . . Authchips . | . . . . Time . | . . . . Total Part Build Rating . | . . . . Parts Repaired . | . . . . Time . | . . . . Parts Recycled . | . . . . Recycled Matter . | . . . . Retrieved Matter . | . . . . Retrieved Components . | . . . . Parts Scanalyzed . | . . . . Part Schematics Acquired . | . . . . Parts Damaged . | . . . . Bothacking | -11 -10 -10 -8 ------------ Run | Yrd Mat Sub Scr Used RIF Installer . | . . . . Robots Hacked . | . . . . Non-combat . | . . . . Combat . | . . . . Robot Hacks Applied . | . . . . Relay Couplers Released . | . . . . Fabnet Peak Effective % . | . . . . Robots Rewired . | . . . . Allies Hacked . | . . . . Hacks Repelled . | . . . . Allies | -11 -10 -10 -8 -------- Run | Yrd Mat Sub Scr Total Allies . | . . . . Largest Group . | . . . . Highest-Rated Group . | . . . . Highest-Rated Ally . | . . . . Total Orders . | . . . . Ally Attacks . | . . . . Total Damage . | . . . . Kills . | . . . . Allies Corrupted . | . . . . Allies Melted . | . . . . Intel | -11 -10 -10 -8 ------- Run | Yrd Mat Sub Scr Active Infowar (turns) 410 | . . 126 284 Optics 410 | . . 126 284 Robot Analysis Total . | . . . . Derelict Logs Recovered 1 | . . 1 . Drone Launches . | . . . . Drone Recoveries . | . . . . Exploration | -11 -10 -10 -8 ------------- Run | Yrd Mat Sub Scr Turns Passed 790 | 43 131 332 284 Spaces Moved 817 | 36 61 376 344 Core 1 | 1 . . . Treads . | . . . . Legs . | . . . . Wheels 816 | 35 61 376 344 Hover . | . . . . Flight . | . . . . Fastest Speed 50 | 50 80 80 80 Average Speed 80 | 79 80 80 80 Slowest Speed 95 | 80 80 80 95 Overloaded Moves . | . . . . Propulsion Burnouts . | . . . . Robots Hopped . | . . . . Potential Cave-ins . | . . . . Cave-ins Triggered . | . . . . Exploration Rate (%) 19 | 3 17 26 30 Regions Visited 3 Branch Regions 2 Pre-discovered Areas 1 | . . 1 . Known Exits Taken . | . . . . Unknown Exits Taken 3 | 1 1 1 . Scrap Searched . | . . . . Spaces Dug . | . . . . Terrain Destroyed . | . . . . Melee . | . . . . Projectile . | . . . . AOE . | . . . . Terrain Rammed . | . . . . Walls Destroyed . | . . . . Machines Disabled . | . . . . Actions | -11 -10 -10 -8 --------- Run | Yrd Mat Sub Scr Total 906 | 47 121 389 349 Wait 35 | . 35 . . Move 814 | 35 60 375 344 Hop . | . . . . Pick Up 12 | 5 6 . 1 Fast Attach 9 | 6 1 1 1 Attach 1 | . . 1 . Detach 1 | . 1 . . Swap 7 | . 3 3 1 Drop 6 | 1 4 1 . Fire 20 | . 11 8 1 Melee . | . . . . Ram . | . . . . Kick . | . . . . Crush . | . . . . Escape Stasis . | . . . . Rewire 1 | . . . 1 Trap . | . . . . Miscellaneous . | . . . . Route ------- -11/Scrapyard -10/Materials (discovered 2 exits: Min / [*Sub]) -10/Subcaves -8/Scraptown History --------- Turn | Location | Event 24 | -11/Scrapyard | Discovered new exit (range 14) 44 | -11/Scrapyard | Entered Materials 50 | -10/Materials | Identified exit to Mines 156 | -10/Materials | Discovered new exit (range 7) 175 | -10/Materials | Entered Subcaves 176 | -10/Subcaves | Approached by a straggling Scientist 204 | -10/Subcaves | A swath of the cavern ceiling suddenly collapsed 302 | -10/Subcaves | Build established: Mutant 349 | -10/Subcaves | Learned location of Zion (-6) 354 | -10/Subcaves | Ambushed by Subdwellers from Twisted Machinery 496 | -10/Subcaves | Scientist uncovered a shortcut to Scraptown 507 | -10/Subcaves | Entered Scraptown 507 | -8/Scraptown | System corruption cleaned by C-Scrubber 548 | -8/Scraptown | Visited Fellowship of the Rings 576 | -8/Scraptown | Visited UFD Registry 576 | -8/Scraptown | Registered with UFD as "Nanobucket" 601 | -8/Scraptown | Visited Curators Association 616 | -8/Scraptown | Visited Abandonware Association 648 | -8/Scraptown | Visited Scrapoid Research Area 703 | -8/Scraptown | Visited CPS Storage 769 | -8/Scraptown | Attacked by Scraptown defenders 779 | -8/Scraptown | Core integrity fell below 50% 788 | -8/Scraptown | Core integrity fell below 20% 791 | -8/Scraptown | Destroyed by D0-HF7(h) with Bolt Gun Last Messages --------------- Bolt penetrates 06-Q6U(r). Penetrated by HV Slug. HV Slug penetrates Wall. Penetrated by HV Slug. HV Slug penetrates Wall. Slug penetrates A0-MCA. Bolt penetrates Machine. HV Slug penetrates A0-MCA. HV Slug penetrates BI-U9G(E). BI-U9G(E) suffers critical hit (Destroy). HV Slug penetrates V6-08S(E). Penetrated by HV Slug. HV Slug penetrates Wall. A0-MCA destroyed. Hvy. Ion Engine destroyed. Acquired Wheel. Penetrated by Bolt. Assault Rifle destroyed. CPS Tube destroyed. Penetrated by Bolt. Map ----- +----------------------------------------------------+ | | | | | ?????????????????????????????????????????????????? | | ?????????????????????????????????????????????????? | | ?????????????????????????????????????????????????? | | ?????????????????????????????????????????????????? | | ?????????????????????????????????????????????????? | | ?????????????????????????????????????????????????? | | ?????????????????????????????????????????????????? | | ?????????????????????????????????????????????????? | | ?????????????????????????????????????????????????? | | ?????????????????????????????????????????????????? | | ?????????????????????????????????????????????????? | | ?????????????????????????????????????????????????? | | ?????????????????????????????????????????????????? | | ????????????????????????####?????????????????????? | | ????????????????????????# ##????????????????????? | | ???????????????????????? #????????????????????? | | ???????????????????????? ????????????????????? | | ???????????????????????? ?????????????????????? | | ???????????????????????? ?????????????????????? | | ????????????????????????# E#?????????????????????? | | ?????????????############ #?????????????????????? | | ?????????????# """""## #?????????????????????? | | ???########### " " " ##EE#?????????????????????? | | ???#"""""""""#""" ##@ #?????????????????????? | | ???# " " " #""" ##rE#?????????????????????? | | ???# #""" " ## #?????????????????????? | | ???# "#?#" # " """## !#?????????????????????? | | ???# "#?#" # """##*h#?????????????????????? | | ???# "###" #"" """##!!#?????????????????????? | | ???# """"" #" " ## =#?????????????????????? | | ???# #" ## #?????????????????????? | | ???# # ## ; ??????????????????? | | ???#### ########### #####p ## ##?????????????????? | | ####### ########### #####z ## ##?????????????????? | | """"""" """"""""""" """"" h"" "#?????????????????? | | j "#?????????????????? | | "#?????????????????? | | "#?????????????????? | | "#?????????????????? | | ??????????????? | | """"""""""""""""""""""""" "## ""?????????????? | | """"""""""""""""""""""""" "#??"""????????????? | | ##### ################"" "#???"?????????????? | | ??? ?????????????#"" "#?????????????????? | | ?? ????????????#"" "#?????????????????? | | ? "" "" ??????????#"" "#?????????????????? | | "" "" X"???????????" "#?????????????????? | | " " #???????????" "#?????????????????? | +----------------------------------------------------+ Best States ------------- Heat Dissipation 25 Energy Generation 14 Energy Capacity 280 Matter Stores 262 Matter Capacity 300 Sight Range 21 Terrain Scan Density 10 Evasion (%) 44 Item Schematics ----------------- None Robot Schematics ------------------ None Fabricated ------------ Nothing Repaired ---------- Nothing Alien Tech Used ----------------- None Achievements -------------- None Challenges ------------ None Game ------ Seed SpliceSupersonicBooster Manual? 0 Play Time 00:13:23 Cumulative 73.9 hours Start 2025.07.13 @ 21:43:39 End 2025.07.14 @ 08:47:57 Sessions 3 Manual Loads 0 Difficulty Rogue Special Mode None Game No. 64 Rogue 61 Adventurer 1 Explorer 2 Win Type - Total 0 Types 0/0/0/0/0/0/0/0/0/0 Lore% 23 Gallery% 42 Achievement% 33 Wizard Run 0 Options --------- Layout 0 ASCII 0 Keyboard 0 Movement Mouse Keybinds 0 Fullscreen 2 Font 24/Smallcaps Map View 76x50 Zoom Use 0% Tactical HUD 0 Map Filters NONE Filters NONE Steam 1 RUN: 111ac85f-cf29-490a-b95f-c7b9c0bcec5d